Cogmind - Beta 13 @@@ ROGUE MODE // 2024.03.31 @ 00:04:20 Player: Merlin1846 Result: Destroyed by D-53 Grenadier with Mini Grenade Launcher Performance ------------- Evolutions (1) 500 Regions Visited (3) 600 Robots Destroyed (65) 325 Value Destroyed (1492) 1492 Prototype IDs (3) 60 Alien Tech Used (0) 0 Bonus (94) 94 TOTAL SCORE: 3071 Bonus ------- High Alert Combat Kills 94 Cogmind --------- Core Integrity 0/400 Matter 253/300 Energy 76/100 System Corruption 0% Temperature Cool (0) Movement Core (1450) Ox28 Location -9/Mines Parts ------- > --- POWER (1) -------- (None) > --- PROPULSION (3) --- (None) > --- UTILITY (3) ------ Improved Heat Sink Huge Storage Unit Improved Targeting Computer > --- WEAPON (2) ------- Advanced Beam Cannon > --- INVENTORY (25) --- Ion Engine Improved Ion Engine Aluminum Leg Aluminum Leg Aluminum Leg Aluminum Leg Aluminum Leg Aluminum Leg Aluminum Leg Huge Storage Unit Large Matter Pod (150) Visual Processing Unit Spread Laser Beam Cannon Particle Cannon Particle Cannon Autogun Autogun High-powered Shotgun High-powered Shotgun Grenade Launcher Peak State ------------ > --- POWER ------------ Ion Engine > --- PROPULSION ------- Light Treads Light Treads Light Treads > --- UTILITY ---------- Improved Heat Sink Huge Storage Unit Improved Targeting Computer > --- WEAPON ----------- Particle Cannon Rocket Launcher > --- INVENTORY -------- Ion Engine Improved Ion Engine Aluminum Leg Aluminum Leg Aluminum Leg Aluminum Leg Aluminum Leg Aluminum Leg Aluminum Leg Huge Storage Unit Large Matter Pod Visual Processing Unit Spread Laser Beam Cannon Particle Cannon Advanced Beam Cannon Advanced Beam Cannon Autogun Autogun High-powered Shotgun High-powered Shotgun Grenade Launcher Grenade Launcher Rocket Launcher Rocket Launcher [Rating: 18] Favorites ----------- Power Ion Engine Engine Ion Engine Propulsion Light Treads Treads Light Treads Leg Aluminum Leg Utility Huge Storage Unit Device Heat Sink Storage Huge Storage Unit Processor Improved Targeting Computer Weapon Beam Cannon Energy Gun EM Pulse Gun Energy Cannon Beam Cannon Ballistic Gun High-powered Shotgun Launcher Grenade Launcher Build | -11 -10 -9 -9 ------- Run | Yrd Mat Mat Min Slots Evolved 2 | . . 2 . Power . | . . . . Propulsion 1 | . . 1 . Utility 1 | . . 1 . Weapon . | . . . . Parts Attached 54 | 7 15 23 9 Power 8 | 2 2 3 1 Engine 8 | 2 2 3 1 Core . | . . . . Reactor . | . . . . Propulsion 13 | 2 4 7 . Treads 11 | . 4 7 . Leg 2 | 2 . . . Wheel . | . . . . Hover . | . . . . Flight . | . . . . Utility 6 | 1 1 3 1 Device 3 | 1 . 1 1 Storage 2 | . 1 1 . Processor 1 | . . 1 . Hackware . | . . . . Protection . | . . . . Artifact . | . . . . Weapon 27 | 2 8 10 7 Energy Gun 2 | 1 . 1 . Energy Cannon 8 | . 2 3 3 Ballistic Gun 5 | 1 1 3 . Ballistic Cannon . | . . . . Launcher 12 | . 5 3 4 Special Weapon . | . . . . Impact Weapon . | . . . . Slashing Weapon . | . . . . Piercing Weapon . | . . . . Special Melee Weapon . | . . . . Unidentified Prototypes 1 | . . . 1 Parts Lost 14 | . 1 3 10 Power 3 | . . 2 1 Propulsion 4 | . . 1 3 Utility 1 | . . . 1 Weapon 6 | . 1 . 5 Highest Loss Streak 9 | . 1 1 9 To Critical Strikes . | . . . . Average Slot Usage (%) 95 | . 94 97 93 Engine 10 | . 12 8 7 Treads 29 | . 26 32 31 Device 12 | . 14 11 9 Storage 12 | . 14 11 11 Processor 5 | . . 11 11 Energy Gun 1 | . 2 . . Energy Cannon 13 | . 13 13 11 Ballistic Gun 2 | . . 5 . Launcher 6 | . 7 2 10 Naked Turns . | . . . . Heaviest Build 96 | 10 92 96 94 Greatest Support 60 | 20 40 60 60 Greatest Overweight (x) 26 | 1 26 1 1 Average Overweight (x) 1 | . 2 1 1 Largest Inventory Capacity 25 | 5 25 25 25 Average Capacity 23 | 5 24 25 25 Most Carried 25 | 5 25 25 25 Average Carried 19 | 4 17 24 24 Final Capacity 25 | 5 25 25 25 Final Carried 25 | 5 25 25 21 Class Distribution -------------------- 89% | Mutant 10% | Scavenger-Mutant Dominant Class ---------------- Mutant | -10/Materials Mutant | -9/Materials Scavenger-Mutant | -9/Mines Resources | -11 -10 -9 -9 ----------- Run | Yrd Mat Mat Min Matter Collected 1417 | 273 403 640 101 Remotely . | . . . . Salvage Created 1711 | 46 248 1169 248 Parts 112 | 4 30 74 4 Haulers Intercepted 3 | . . 3 . Recyclers Shooed 1 | . . 1 . Parts Field Recycled . | . . . . Retrieved Matter . | . . . . Parts Self-Destructed . | . . . . Prevented . | . . . . Kills | -11 -10 -9 -9 ------- Run | Yrd Mat Mat Min Combat Hostiles Destroyed 40 | 1 13 22 4 Guns 6 | 1 . 5 . Cannons 19 | . 4 12 3 AOE 14 | . 8 5 1 Classes Destroyed 11 | 1 5 3 2 Worker 5 | . 1 4 . Builder 7 | . 3 4 . Hauler 3 | . . 3 . Recycler 2 | . . 2 . Operator 3 | . 1 2 . Watcher 6 | . 2 4 . Swarmer 11 | . 8 3 . Grunt 24 | 1 5 16 2 Sentry 3 | . . 3 . Demolisher 1 | . . . 1 Assembled 1 | . . . 1 Best Kill Streak 7 | 1 7 6 2 Combat Bots Only 6 | 1 6 3 2 Max Kills in Single Turn 3 | 1 2 3 1 Gunslinging . | . . . . Exploded 2 | . 2 2 1 Melee . | . . . . Uniques/NPCs Destroyed . | . . . . Combat | -11 -10 -9 -9 -------- Run | Yrd Mat Mat Min Hostile Shots Fired 191 | 1 46 91 53 Missed 57 | . 16 27 14 Damage Taken 2545 | 11 321 984 1229 Core 443 | . 33 95 315 Absorbed by Shields . | . . . . Regen/Repaired (Parts) 51 | . 51 . . Core Remaining (%) 93 | 100 86 . . Volleys Fired 111 | 1 32 59 19 Largest 2 | 2 2 2 2 Hottest 120 | 60 120 120 101 Shots Fired 199 | 2 61 111 25 Gun 51 | 2 12 37 . Cannon 108 | . 30 60 18 Launcher 40 | . 19 14 7 Special . | . . . . Kinetic 36 | 1 2 33 . Thermal 112 | . 30 64 18 Explosive 40 | . 19 14 7 Electromagnetic 11 | 1 10 . . Robot Hit Streak 11 | 1 4 11 10 Robot Miss Streak 5 | 1 5 5 3 Penetration Max . | . . . . Secondary Targets . | . . . . Shots Hit Robots 107 | 1 23 66 17 Core Hits 106 | 1 34 61 10 Critical Kills 1 | . 1 . . Critical Parts Destroyed . | . . . . Critical Strikes 1 | . 1 . . Meltdown 1 | . 1 . . Melee Attacks . | . . . . Impact . | . . . . Slashing . | . . . . Piercing . | . . . . Sneak Attacks . | . . . . Combat Hostiles . | . . . . Follow-up Attacks . | . . . . Damage Inflicted 4285 | 15 1325 2431 514 Guns 532 | 15 68 449 . Cannons 1045 | . 177 603 265 Explosions 2696 | . 1068 1379 249 Melee . | . . . . Ramming 12 | . 12 . . Kinetic 427 | 15 . 412 . Thermal 1733 | . 205 1263 265 Explosive 2045 | . 1040 756 249 Electromagnetic 68 | . 68 . . Impact . | . . . . Slashing . | . . . . Piercing . | . . . . Highest Corruption . | . . . . Average Corruption . | . . . . Corruption Purged . | . . . . Corruption Blocked . | . . . . Overload Shots . | . . . . Overflow Damage 156 | . 90 33 33 Projectiles 10 | . . . 10 Explosions 146 | . 90 33 23 Melee . | . . . . Knockbacks . | . . . . Impact . | . . . . Kinetic . | . . . . Secondary . | . . . . Self-Inflicted Damage 384 | . 66 249 69 Shots 14 | . 3 9 2 Rammed 4 | . 4 . . Targets Rammed 4 | . 4 . . Kicked . | . . . . Crushed . | . . . . Highest Temperature 132 | . 90 132 78 Average Temperature 35 | . 35 35 34 Received Heat Transfer 327 | 6 30 246 45 Siege Activations . | . . . . Robots Corrupted . | . . . . Combat Hostiles . | . . . . Parts Fried . | . . . . Impact Corruptions . | . . . . Robots Melted 1 | . 1 . . Combat Hostiles 1 | . 1 . . Parts Melted 5 | . 3 2 . Heat Transferred 2480 | . 420 1579 481 Parts Sabotaged . | . . . . Parts Stolen . | . . . . Parts Stripped . | . . . . Power Chain Reactions 1 | . 1 . . Alert | -11 -10 -9 -9 ------- Run | Yrd Mat Mat Min Peak Influence 668 | 20 280 668 354 Initial 260 | . 13 3 260 Average 193 | 15 84 342 335 Maximum Alert Level 2 | . 1 2 1 Low Security (%) 55 | 100 90 13 . Level 1 32 | . 9 50 100 Level 2 12 | . . 35 . Level 3 . | . . . . Level 4 . | . . . . Level 5 . | . . . . High Security . | . . . . Max Security . | . . . . Squads Dispatched 6 | . 2 4 . Investigation 2 | . 1 1 . Extermination . | . . . . Reinforcement 4 | . 1 3 . Assault . | . . . . Garrison . | . . . . Intercept . | . . . . Searches Triggered . | . . . . Construction Impeded 1 | . . 1 . Haulers Reinforced . | . . . . Active Scanning Responses . | . . . . Cargo Convoy Interrupts . | . . . . Stealth | -11 -10 -9 -9 --------- Run | Yrd Mat Mat Min Distress Signals 1 | . . . 1 Communications Jammed . | . . . . Distress Signals . | . . . . Times Spotted 69 | 1 24 34 10 Peak Tracking Total 6 | 1 3 4 6 Tactical Retreats 6 | . . 5 1 Traps | -11 -10 -9 -9 ------- Run | Yrd Mat Mat Min Traps Triggered 3 | . 1 2 . Indirectly . | . . . . Trap Hack Attempts . | . . . . Triggered . | . . . . Disarmed . | . . . . Reprogrammed . | . . . . Reused . | . . . . Traps Extracted . | . . . . Installed . | . . . . Triggered . | . . . . Machines | -11 -10 -9 -9 ---------- Run | Yrd Mat Mat Min Machines Disabled 15 | . 5 10 . Max in Single Turn 5 | . 2 5 . Machines Repaired . | . . . . Machines Dismantled . | . . . . Machines Sabotaged . | . . . . Overloaded Fab Kills . | . . . . Hacking | -11 -10 -9 -9 --------- Run | Yrd Mat Mat Min Machines Accessed 8 | . 7 1 . Terminals 7 | . 6 1 . Fabricators . | . . . . Repair Stations 1 | . 1 . . Recycling Units . | . . . . Scanalyzers . | . . . . Garrison Access . | . . . . Total Hacks 26 | . 21 5 . Successful 14 | . 12 2 . Failed 12 | . 9 3 . Catastrophic 2 | . 2 . . Database Lockouts . | . . . . Manual . | . . . . Terminals 22 | . 17 5 . Fabricators . | . . . . Repair Stations 4 | . 4 . . Recycling Units . | . . . . Scanalyzers . | . . . . Garrison Access . | . . . . Terminal Hacks 12 | . 10 2 . Record 6 | . 5 1 . Prototype ID Bank 1 | . 1 . . Repair Station Index 1 | . . 1 . Alert Level 1 | . 1 . . Locate Traps 2 | . 2 . . Zone Layout 1 | . 1 . . Fabricator Hacks . | . . . . Repair Station Hacks 2 | . 2 . . Scan Component 1 | . 1 . . Repair 1 | . 1 . . Recycling Unit Hacks . | . . . . Scanalyzer . | . . . . Garrison Access Hacks . | . . . . Unauthorized Hacks . | . . . . Terminals . | . . . . Fabricators . | . . . . Repair Stations . | . . . . Recycling Units . | . . . . Scanalyzers . | . . . . Garrison Access . | . . . . Data Cores Recovered 1 | . 1 . . Used . | . . . . Hacking Detections 5 | . 4 1 . Full Trace Events 2 | . 2 . . Feedback Events . | . . . . Feedback Blocked . | . . . . Robot Schematics Acquired . | . . . . Robots Built . | . . . . Authchips . | . . . . Time . | . . . . Total Robot Build Rating . | . . . . Part Schematics Acquired . | . . . . Parts Built . | . . . . Authchips . | . . . . Time . | . . . . Total Part Build Rating . | . . . . Parts Repaired 1 | . 1 . . Time 26 | . 26 . . Parts Recycled . | . . . . Recycled Matter . | . . . . Retrieved Matter . | . . . . Retrieved Components . | . . . . Parts Scanalyzed . | . . . . Part Schematics Acquired . | . . . . Parts Damaged . | . . . . Bothacking | -11 -10 -9 -9 ------------ Run | Yrd Mat Mat Min Used RIF Installer . | . . . . Robots Hacked . | . . . . Non-combat . | . . . . Combat . | . . . . Robot Hacks Applied . | . . . . Relay Couplers Released . | . . . . Fabnet Peak Effective % . | . . . . Robots Rewired . | . . . . Allies Hacked . | . . . . Hacks Repelled . | . . . . Allies | -11 -10 -9 -9 -------- Run | Yrd Mat Mat Min Total Allies . | . . . . Largest Group . | . . . . Highest-Rated Group . | . . . . Highest-Rated Ally . | . . . . Total Orders . | . . . . Ally Attacks . | . . . . Total Damage . | . . . . Kills . | . . . . Allies Corrupted . | . . . . Allies Melted . | . . . . Intel | -11 -10 -9 -9 ------- Run | Yrd Mat Mat Min Robot Analysis Total . | . . . . Derelict Logs Recovered . | . . . . Drone Launches . | . . . . Drone Recoveries . | . . . . Exploration | -11 -10 -9 -9 ------------- Run | Yrd Mat Mat Min Turns Passed 3548 | 290 1665 1199 394 Spaces Moved 1132 | 128 460 404 140 Core 58 | 54 4 . . Treads 990 | . 446 404 140 Legs 84 | 74 10 . . Wheels . | . . . . Hover . | . . . . Flight . | . . . . Fastest Speed 50 | 50 120 240 240 Average Speed 258 | 95 327 240 240 Slowest Speed 1350 | 120 1350 240 240 Overloaded Moves . | . . . . Propulsion Burnouts . | . . . . Robots Hopped . | . . . . Cave-ins Triggered . | . . . . Exploration Rate (%) 39 | 8 80 43 28 Regions Visited 3 Branch Regions 1 Pre-discovered Areas . | . . . . Known Exits Taken . | . . . . Unknown Exits Taken 3 | 1 1 1 . Scrap Searched . | . . . . Spaces Dug 9 | . . . 9 Terrain Destroyed 246 | . 77 102 67 Melee . | . . . . Projectile . | . . . . AOE 246 | . 77 102 67 Terrain Rammed . | . . . . Walls Destroyed . | . . . . Machines Disabled . | . . . . Actions | -11 -10 -9 -9 --------- Run | Yrd Mat Mat Min Total 1544 | 293 550 529 172 Wait 162 | 147 8 7 . Move 1129 | 127 459 403 140 Hop . | . . . . Pick Up 56 | 10 28 17 1 Fast Attach 4 | 2 1 . 1 Attach 18 | 4 5 4 5 Detach . | . . . . Swap 32 | 1 9 19 3 Drop 25 | 1 4 20 . Fire 111 | 1 32 59 19 Melee . | . . . . Ram . | . . . . Kick . | . . . . Crush 4 | . 4 . . Escape Stasis . | . . . . Rewire 3 | . . . 3 Trap . | . . . . Miscellaneous . | . . . . Route ------- -11/Scrapyard -10/Materials (discovered 3 exits: *Mat x2 / [*Min]) -9/Materials (discovered 2 exits: [*Mat] / [*Min]) -9/Mines (discovered 1 exit: [*Mat]) History --------- Turn | Location | Event 2 | -11/Scrapyard | Met Revision 17 64 | -11/Scrapyard | Discovered new exit (range 8) 291 | -11/Scrapyard | Entered Materials 341 | -10/Materials | Build established: Mutant 680 | -10/Materials | Repaired Ion Engine? 1134 | -10/Materials | Discovered new exit (range 15) 1275 | -10/Materials | Discovered new exit (range 6) 1918 | -10/Materials | Discovered new exit (range 12) 1956 | -10/Materials | Entered another Materials area 1956 | -9/Materials | Evolved 2 slots: Propulsion x1, Utility x1 2595 | -9/Materials | Discovered new exit (range 15) 3023 | -9/Materials | Discovered new exit (range 11) 3155 | -9/Materials | Entered Mines 3398 | -9/Mines | Discovered new exit (range 6) 3443 | -9/Mines | Received a Rocket Launcher from a helpful Derelict 3501 | -9/Mines | Assembled infested the area 3506 | -9/Mines | Assisted by a Guerilla fighting off Assembled 3533 | -9/Mines | Core integrity fell below 50% 3541 | -9/Mines | Core integrity fell below 20% 3549 | -9/Mines | Destroyed by D-53 Grenadier with Mini Grenade Launcher Last Messages --------------- Rocket Launcher destroyed. U-05 Engineer lays Concrete. Grenade Launcher destroyed. U-05 Engineer lays Concrete. Rocket Launcher destroyed. U-05 Engineer destroyed. Identified Adv. Beam Cannon. [Achievement: Risk Taker] Imp. Targeting Computer broken. Faulty integration triggers power surge. Destroyed Shock Absorption System. D-53 Grenadier destroyed. The unstable cave ceiling collapses. as-83325 destroyed. Ion Engine destroyed. as-99034 destroyed. The unstable cave ceiling collapses. as-83714 destroyed. The unstable cave ceiling collapses. Faulty Adv. Beam Cannon destroyed. Map ----- +----------------------------------------------------+ | ?????????????????????????????????????????????????? | | ?????????????????????????????????????????????????? | | ?????????????????????####????????????????????????? | | ????????????????????## ##???????????????????????? | | ???????????????????## #???????????????????????? | | ???????????????????# #???????????????????????? | | ???????????????????# #???????????????????????? | | ??????????????####### #???????????????????????? | | ?????????????## ### ##???????????????????????? | | ?????????????# [ ### #????????????????????????? | | ?????????????# ! ### #????????????????????????? | | ??????????????#/ ####?????????????????????? | | ??????????????## ] # # #?????????????????????? | | ???????????????# %=% ##?????? ??????????????? | | ???????????????# #????? #??????????????? | | ???????????????# ## # #????? ???????????????? | | ??????????????#### ## #???? ????????????????? | | ??????######### # # ###??? #????????????????? | | ??????# ## ######? #????????????????? | | ??##### ####### # ## #????????????????? | | ?## ## #?????# ### #????????????????? | | ?# #?????# ### #????????????????? | | ?## #????# ### #????????????????? | | ??## #????# ## ##????????????????? | | ???## ##???## #?????????????????? | | ????#####????# @ # ###???????????????? | | ????????????## ##??????????????? | | ??????####?## ## % ########???????? | | ?????## ### #### *%= #??????? | | ??#### #??# ######## #??????? | | ??# ##?# ## ####???????????????? | | ??# ###??# #####??????????????????? | | ??# #### ##????## =%! #??????????????????????? | | ??# #??## ##?????? d #??????????????????????? | | ??# #???## #??????# % ??????????????????????? | | ### ##???# #??????# #??????????????????????? | | ##### ######?### ##???????????????????????? | | #### #????????????????????????? | | < ## #????????????????????????? | | ###### ##????????????????????????? | | #????# ##?????????????????????????? | | #????## ##??????????????????????????? | | #######?????##### ##???????????????????????????? | | ????????????????#####????????????????????????????? | | ?????????????????????????????????????????????????? | | ?????????????????????????????????????????????????? | | ?????????????????????????????????????????????????? | | ?????????????????????????????????????????????????? | | ?????????????????????????????????????????????????? | | ?????????????????????????????????????????????????? | +----------------------------------------------------+ Best States ------------- Heat Dissipation 42 Energy Generation 12 Energy Capacity 265 Matter Stores 300 Matter Capacity 300 Sight Range 16 Terrain Scan Density 10 Evasion (%) 55 Targeting Accuracy 6 Recoil Reduction 3 Item Schematics ----------------- None Robot Schematics ------------------ None Fabricated ------------ Nothing Alien Tech Used ----------------- None Achievements -------------- It's Just You Let's See Who's Tougher Loot Pinata One Hack Too Far Part-time Mechanic Remodeling Risk Taker Uninvited Guest Challenges ------------ None Game ------ Seed TransmissionMetafieldCharger Manual? 0 Play Time 00:45:54 Cumulative 2.2 hours Start 2024.03.30 @ 23:19:47 End 2024.03.31 @ 00:04:20 Sessions 1 Manual Loads 0 Difficulty Rogue Special Mode None Game No. 2 Rogue 1 Adventurer 1 Explorer 0 Win Type - Total 0 Types 0/0/0/0/0/0/0/0/0 Lore% 1 Gallery% 3 Achievement% 5 Wizard Run 0 Options --------- Layout 1 ASCII 0 Keyboard 0 Movement Mouse Keybinds 0 Fullscreen 1 Font 24/Smallcaps Map View 50x35 Zoom Use 0% Tactical HUD 0 Map Filters NONE Filters NONE Steam 1 RUN: d27054df-ade1-49cd-9838-ce940a957c5c